[Event "IRI-ch Men Final 2015"]
[Site "Tehran"]
[Date "2016.01.21"]
[Round "3"]
[White "Gholami, Aryan"]
[Black "Ghaem Maghami, Ehsan"]
[Result "1/2-1/2"]
[ECO "B50"]
[WhiteElo "2398"]
[BlackElo "2594"]
[PlyCount "55"]
[EventDate "2016.??.??"]
[EventCountry "IRI"]
[TimeControl "40/5400+30:1800+30"]

1. e4 {[%emt 0:00:00]} c5 {[%emt 0:00:00]} 2. Nf3 {[%emt 0:00:07]} d6 {[%emt 0:
05:48]} 3. c3 {[%emt 0:00:12]} Nf6 {[%emt 0:00:15]} 4. Be2 {[%emt 0:00:09]} g6
{[%emt 0:06:55]} 5. O-O {[%emt 0:00:46]} Bg7 {[%emt 0:00:47]} 6. Bb5+ {[%emt 0:
07:40]} Nc6 {[%emt 0:00:21]} 7. d4 {[%emt 0:02:10]} O-O {[%emt 0:00:30]} 8. e5
{[%emt 0:10:30]} Nd5 {[%emt 0:05:11]} 9. dxc5 {[%emt 0:13:43]} dxe5 {[%emt 0:
20:14]} 10. Re1 {[%emt 0:02:39]} Nc7 {[%emt 0:02:20]} 11. Qxd8 {[%emt 0:01:44]}
Rxd8 {[%emt 0:00:21]} 12. Ba4 {[%emt 0:01:10]} f5 {[%emt 0:09:07]} 13. Na3 {
[%emt 0:17:54]} h6 {[%emt 0:06:05]} 14. Bxc6 {[%emt 0:08:19]} bxc6 {[%emt 0:00:
55]} 15. Nc4 {[%emt 0:00:11]} e4 {[%emt 0:02:55]} 16. Nd4 {[%emt 0:03:33]} Be6
{[%emt 0:02:45]} 17. Na5 {[%emt 0:01:00]} Bxd4 {[%emt 0:00:13]} 18. cxd4 {
[%emt 0:00:16]} Bd5 {[%emt 0:00:10]} 19. Bxh6 {[%emt 0:04:29]} Ne6 {[%emt 0:00:
23]} 20. Be3 {[%emt 0:03:55]} Rab8 {[%emt 0:12:46]} 21. b3 {[%emt 0:02:07]} Rb5
{[%emt 0:08:14]} 22. Nc4 {[%emt 0:01:05]} f4 {[%emt 0:01:09]} 23. Bd2 {[%emt 0:
00:53]} Nxd4 {[%emt 0:00:56]} 24. Na3 {[%emt 0:01:07]} Rxc5 {[%emt 0:02:04]}
25. Bb4 {[%emt 0:04:25]} Rc2 {[%emt 0:01:24]} 26. Rad1 {[%emt 0:05:04]} e3 {
[%emt 0:04:01]} 27. Nxc2 {[%emt 0:04:10]} Nxc2 {[%emt 0:00:03]} 28. fxe3 {
[%emt 0:03:29]} 1/2-1/2

[Event "IRI-ch Men Final 2015"]
[Site "Tehran"]
[Date "2016.01.21"]
[Round "3"]
[White "Javanbakht, Nima"]
[Black "Firouzja, Alireza"]
[Result "1/2-1/2"]
[ECO "A05"]
[WhiteElo "2422"]
[BlackElo "2455"]
[PlyCount "94"]
[EventDate "2016.??.??"]
[EventCountry "IRI"]
[TimeControl "40/5400+30:1800+30"]

1. Nf3 {[%emt 0:00:00]} Nf6 {[%emt 0:00:00]} 2. c4 {[%emt 0:00:00]} g6 {
[%emt 0:00:44]} 3. Nc3 {[%emt 0:00:19]} Bg7 {[%emt 0:00:12]} 4. e4 {[%emt 0:00:
09]} d6 {[%emt 0:00:18]} 5. d4 {[%emt 0:00:10]} O-O {[%emt 0:00:07]} 6. h3 {
[%emt 0:00:02]} e5 {[%emt 0:05:25]} 7. dxe5 {[%emt 0:05:08]} dxe5 {[%emt 0:00:
23]} 8. Qxd8 {[%emt 0:00:09]} Rxd8 {[%emt 0:00:06]} 9. Bg5 {[%emt 0:00:05]} Na6
{[%emt 0:07:02]} 10. Nd5 {[%emt 0:05:29]} Rd6 {[%emt 0:01:27]} 11. Bxf6 {
[%emt 0:00:05]} Bxf6 {[%emt 0:00:08]} 12. b4 {[%emt 0:00:40]} c6 {[%emt 0:14:
38]} 13. Nxf6+ {[%emt 0:19:18]} Rxf6 {[%emt 0:00:16]} 14. a3 {[%emt 0:00:11]}
c5 {[%emt 0:02:39]} 15. b5 {[%emt 0:07:07]} Nc7 {[%emt 0:00:09]} 16. Bd3 {
[%emt 0:07:21]} Rd6 {[%emt 0:01:19]} 17. O-O-O {[%emt 0:01:25]} f6 {[%emt 0:01:
26]} 18. Be2 {[%emt 0:00:16]} Rxd1+ {[%emt 0:01:03]} 19. Rxd1 {[%emt 0:00:03]}
Ne6 {[%emt 0:04:49]} 20. a4 {[%emt 0:04:18]} Kf8 {[%emt 0:01:55]} 21. a5 {
[%emt 0:05:35]} a6 {[%emt 0:01:32]} 22. b6 {[%emt 0:00:59]} Ke7 {[%emt 0:00:29]
} 23. Nd2 {[%emt 0:04:55]} h5 {[%emt 0:02:22]} 24. Kb2 {[%emt 0:03:12]} Bd7 {
[%emt 0:00:19]} 25. Kc3 {[%emt 0:03:54]} Bc6 {[%emt 0:01:32]} 26. f3 {[%emt 0:
06:12]} h4 {[%emt 0:01:14]} 27. Re1 {[%emt 0:01:52]} Nf4 {[%emt 0:04:08]} 28.
Bf1 {[%emt 0:00:17]} Rd8 {[%emt 0:01:22]} 29. Nb3 {[%emt 0:00:29]} Ne6 {
[%emt 0:00:13]} 30. Ra1 {[%emt 0:00:40]} f5 {[%emt 0:04:48]} 31. Bd3 {[%emt 0:
02:51]} Kf6 {[%emt 0:02:31]} 32. Bc2 {[%emt 0:00:16]} Be8 {[%emt 0:10:19]} 33.
Bd3 {[%emt 0:09:51]} Rc8 {[%emt 0:02:58]} 34. Bc2 {[%emt 0:05:23]} Bf7 {
[%emt 0:08:44]} 35. Rd1 {[%emt 0:01:33]} Nd4 {[%emt 0:00:40]} 36. Bd3 {[%emt 0:
01:08]} Nxb3 {[%emt 0:01:16]} 37. Kxb3 {[%emt 0:00:03]} Rd8 {[%emt 0:00:05]}
38. Kc3 {[%emt 0:00:46]} Kg5 {[%emt 0:05:05]} 39. exf5 {[%emt 0:02:50]} gxf5 {
[%emt 0:00:59]} 40. f4+ {[%emt 0:00:05]} Kxf4 {[%emt 0:08:30]} 41. Rf1+ {
[%emt 0:30:14]} Kg3 {[%emt 0:30:05]} 42. Bxf5 {[%emt 0:00:03]} Kxg2 {[%emt 0:
00:00]} 43. Re1 {[%emt 0:00:00]} Rd4 {[%emt 0:00:00]} 44. Rxe5 {[%emt 0:00:00]}
Rxc4+ {[%emt 0:00:00]} 45. Kd3 {[%emt 0:00:00]} Kf2 {[%emt 0:00:00]} 46. Be4 {
[%emt 0:00:00]} Rd4+ {[%emt 0:00:00]} 47. Kc3 {[%emt 0:00:00]} Rc4+ {[%emt 0:
00:00]} 1/2-1/2

[Event "IRI-ch Men Final 2015"]
[Site "Tehran"]
[Date "2016.01.21"]
[Round "3"]
[White "Khamisi, S Jafar"]
[Black "Bagheri, Maziar"]
[Result "1-0"]
[ECO "C41"]
[WhiteElo "2279"]
[BlackElo "2262"]
[PlyCount "81"]
[EventDate "2016.??.??"]
[EventCountry "IRI"]
[TimeControl "40/5400+30:1800+30"]

1. e4 {[%emt 0:00:24]} e5 {[%emt 0:00:00]} 2. Nf3 {[%emt 0:00:25]} d6 {[%emt 0:
00:00]} 3. d4 {[%emt 0:00:37]} exd4 {[%emt 0:00:03]} 4. Nxd4 {[%emt 0:00:43]}
g6 {[%emt 0:00:07]} 5. Nc3 {[%emt 0:01:50]} Bg7 {[%emt 0:00:07]} 6. Be3 {
[%emt 0:02:26]} Nf6 {[%emt 0:08:52]} 7. Qd2 {[%emt 0:01:16]} h6 {[%emt 0:03:57]
} 8. f3 {[%emt 0:02:52]} Nc6 {[%emt 0:01:21]} 9. Nde2 {[%emt 0:12:36]} Ne5 {
[%emt 0:05:18]} 10. b3 {[%emt 0:02:42]} Bd7 {[%emt 0:10:24]} 11. O-O-O {
[%emt 0:09:02]} a5 {[%emt 0:01:55]} 12. Nd4 {[%emt 0:05:57]} a4 {[%emt 0:01:21]
} 13. b4 {[%emt 0:09:55]} a3 {[%emt 0:06:25]} 14. b5 {[%emt 0:01:20]} c6 {
[%emt 0:19:27]} 15. f4 {[%emt 0:06:50]} Neg4 {[%emt 0:00:21]} 16. Bg1 {[%emt 0:
00:12]} Nh5 {[%emt 0:03:10]} 17. g3 {[%emt 0:22:01]} O-O {[%emt 0:03:44]} 18.
Nb3 {[%emt 0:07:33]} c5 {[%emt 0:08:41]} 19. e5 {[%emt 0:02:29]} Be6 {[%emt 0:
02:52]} 20. Qe2 {[%emt 0:05:19]} c4 {[%emt 0:04:50]} 21. Nd4 {[%emt 0:03:07]}
Bc8 {[%emt 0:02:48]} 22. exd6 {[%emt 0:00:47]} Qxd6 {[%emt 0:03:22]} 23. Qxc4 {
[%emt 0:00:14]} Re8 {[%emt 0:02:29]} 24. Bg2 {[%emt 0:00:24]} Qf8 {[%emt 0:04:
39]} 25. Nd5 {[%emt 0:00:39]} Rd8 {[%emt 0:04:18]} 26. Bf3 {[%emt 0:00:37]} Bf5
{[%emt 0:01:12]} 27. Nxf5 {[%emt 0:00:29]} gxf5 {[%emt 0:00:05]} 28. Bc5 {
[%emt 0:00:40]} Rac8 {[%emt 0:00:57]} 29. Bxf8 {[%emt 0:00:18]} Rxc4 {[%emt 0:
00:21]} 30. Be7 {[%emt 0:00:41]} Rd7 {[%emt 0:01:16]} 31. Bxa3 {[%emt 0:00:25]}
Kh8 {[%emt 0:00:37]} 32. Rhe1 {[%emt 0:00:36]} Ra4 {[%emt 0:00:27]} 33. Re8+ {
[%emt 0:00:31]} Kh7 {[%emt 0:00:01]} 34. Bxg4 {[%emt 0:00:24]} fxg4 {[%emt 0:
00:04]} 35. Bb2 {[%emt 0:00:27]} Rxa2 {[%emt 0:00:49]} 36. Bxg7 {[%emt 0:00:18]
} Kxg7 {[%emt 0:00:02]} 37. Kb1 {[%emt 0:00:50]} Ra4 {[%emt 0:01:35]} 38. Rd3 {
[%emt 0:00:30]} Rc4 {[%emt 0:00:16]} 39. Re5 {[%emt 0:00:27]} Rc5 {[%emt 0:00:
46]} 40. Rxh5 {[%emt 0:00:28]} Rxb5+ {[%emt 0:00:01]} 41. Kc1 {[%emt 0:30:13]}
1-0

[Event "IRI-ch Men Final 2015"]
[Site "Tehran"]
[Date "2016.01.21"]
[Round "3"]
[White "Lorparizangeneh, Shahin"]
[Black "Maghsoodloo, Parham"]
[Result "1/2-1/2"]
[ECO "A22"]
[WhiteElo "2442"]
[BlackElo "2450"]
[PlyCount "100"]
[EventDate "2016.??.??"]
[EventCountry "IRI"]
[TimeControl "40/5400+30:1800+30"]

1. c4 {[%emt 0:00:00]} Nf6 {[%emt 0:00:13]} 2. Nc3 {[%emt 0:00:06]} e5 {
[%emt 0:00:30]} 3. g3 {[%emt 0:04:00]} Bb4 {[%emt 0:00:29]} 4. Bg2 {[%emt 0:00:
43]} O-O {[%emt 0:00:46]} 5. Nf3 {[%emt 0:04:16]} Nc6 {[%emt 0:01:02]} 6. O-O {
[%emt 0:01:56]} e4 {[%emt 0:00:31]} 7. Ng5 {[%emt 0:01:08]} Bxc3 {[%emt 0:00:
13]} 8. bxc3 {[%emt 0:00:08]} Re8 {[%emt 0:03:47]} 9. f3 {[%emt 0:00:54]} exf3
{[%emt 0:02:54]} 10. Nxf3 {[%emt 0:00:46]} Qe7 {[%emt 0:05:15]} 11. d4 {
[%emt 0:17:22]} h6 {[%emt 0:04:26]} 12. Nh4 {[%emt 0:12:42]} d6 {[%emt 0:03:55]
} 13. e3 {[%emt 0:01:26]} Bg4 {[%emt 0:03:37]} 14. Qd3 {[%emt 0:11:29]} Qd7 {
[%emt 0:06:27]} 15. Nf5 {[%emt 0:03:29]} Bxf5 {[%emt 0:03:42]} 16. Rxf5 {
[%emt 0:02:01]} Ne7 {[%emt 0:01:15]} 17. Rf1 {[%emt 0:01:18]} c6 {[%emt 0:01:
57]} 18. e4 {[%emt 0:00:45]} Qe6 {[%emt 0:03:29]} 19. d5 {[%emt 0:14:42]} Qg4 {
[%emt 0:02:33]} 20. Bxh6 {[%emt 0:01:51]} Ng6 {[%emt 0:05:34]} 21. Bf4 {
[%emt 0:03:26]} Ne5 {[%emt 0:01:31]} 22. Bxe5 {[%emt 0:01:19]} Rxe5 {[%emt 0:
00:10]} 23. dxc6 {[%emt 0:03:11]} bxc6 {[%emt 0:00:09]} 24. Qxd6 {[%emt 0:00:
07]} Rae8 {[%emt 0:08:40]} 25. Rae1 {[%emt 0:00:39]} Qe6 {[%emt 0:03:36]} 26.
Qxe6 {[%emt 0:01:24]} R8xe6 {[%emt 0:00:27]} 27. Rd1 {[%emt 0:00:56]} c5 {
[%emt 0:05:38]} 28. Rd8+ {[%emt 0:01:42]} Kh7 {[%emt 0:00:01]} 29. Rf8 {
[%emt 0:01:42]} Re7 {[%emt 0:00:43]} 30. Rc8 {[%emt 0:02:18]} Nxe4 {[%emt 0:07:
26]} 31. Bxe4+ {[%emt 0:00:49]} Rxe4 {[%emt 0:00:01]} 32. Rxc5 {[%emt 0:00:07]}
Re3 {[%emt 0:00:12]} 33. Rcf5 {[%emt 0:00:33]} f6 {[%emt 0:00:38]} 34. R5f3 {
[%emt 0:02:09]} R3e4 {[%emt 0:00:24]} 35. Rf4 {[%emt 0:00:18]} Re3 {[%emt 0:00:
07]} 36. Rc1 {[%emt 0:00:57]} Re2 {[%emt 0:00:14]} 37. Rf2 {[%emt 0:00:45]}
R2e4 {[%emt 0:00:40]} 38. Rb2 {[%emt 0:02:05]} Rxc4 {[%emt 0:00:24]} 39. Rb4 {
[%emt 0:00:05]} Rc5 {[%emt 0:02:07]} 40. Rc2 {[%emt 0:00:17]} Re3 {[%emt 0:02:
34]} 41. Rh4+ {[%emt 0:30:56]} Kg6 {[%emt 0:31:46]} 42. c4 {[%emt 0:00:00]} Kf5
{[%emt 0:00:00]} 43. Kf2 {[%emt 0:00:00]} Re4 {[%emt 0:00:00]} 44. Rxe4 {
[%emt 0:00:00]} Kxe4 {[%emt 0:00:00]} 45. Re2+ {[%emt 0:00:00]} Kf5 {[%emt 0:
00:00]} 46. Re7 {[%emt 0:00:00]} Rxc4 {[%emt 0:00:00]} 47. Rxa7 {[%emt 0:00:00]
} Rc2+ {[%emt 0:00:00]} 48. Kf3 {[%emt 0:00:00]} Rxh2 {[%emt 0:00:00]} 49. Rxg7
{[%emt 0:00:00]} Rxa2 {[%emt 0:00:00]} 50. g4+ {[%emt 0:00:00]} Ke5 {Ke4+}
1/2-1/2

[Event "IRI-ch Men Final 2015"]
[Site "Tehran"]
[Date "2016.01.21"]
[Round "3"]
[White "Mousavi, Seyed Khalil"]
[Black "Mosadeghpour, Masoud"]
[Result "0-1"]
[ECO "A16"]
[WhiteElo "2425"]
[BlackElo "2475"]
[PlyCount "62"]
[EventDate "2016.??.??"]
[EventCountry "IRI"]
[TimeControl "40/5400+30:1800+30"]

1. c4 {[%emt 0:00:00]} Nf6 {[%emt 0:03:32]} 2. Nc3 {[%emt 0:00:00]} d5 {
[%emt 0:00:06]} 3. cxd5 {[%emt 0:00:00]} Nxd5 {[%emt 0:00:05]} 4. Nf3 {[%emt 0:
00:01]} g6 {[%emt 0:00:54]} 5. h4 {[%emt 0:00:26]} Bg7 {[%emt 0:00:14]} 6. h5 {
[%emt 0:00:51]} Nc6 {[%emt 0:00:09]} 7. g3 {[%emt 0:00:21]} Bf5 {[%emt 0:01:14]
} 8. a3 {[%emt 0:15:06]} Nxc3 {[%emt 0:15:54]} 9. bxc3 {[%emt 0:01:04]} Qd5 {
[%emt 0:04:54]} 10. Bb2 {[%emt 0:02:38]} Qb5 {[%emt 0:09:36]} 11. Ra2 {[%emt 0:
09:58]} Qb6 {[%emt 0:12:27]} 12. Ba1 {[%emt 0:03:54]} O-O-O {[%emt 0:00:27]}
13. Bg2 {[%emt 0:05:22]} Be6 {[%emt 0:08:40]} 14. Rb2 {[%emt 0:01:35]} Qa6 {
[%emt 0:00:05]} 15. d4 {[%emt 0:11:23]} Bd5 {[%emt 0:06:09]} 16. h6 {[%emt 0:
08:45]} Bf8 {[%emt 0:03:26]} 17. Qb1 {[%emt 0:08:43]} f5 {[%emt 0:04:39]} 18.
Kf1 {[%emt 0:03:49]} e5 {[%emt 0:05:17]} 19. Nxe5 {[%emt 0:12:04]} Nxe5 {
[%emt 0:08:59]} 20. Bxd5 {[%emt 0:00:04]} Rxd5 {[%emt 0:00:07]} 21. dxe5 {
[%emt 0:00:08]} Bxa3 {[%emt 0:03:54]} 22. Ra2 {[%emt 0:00:35]} Rhd8 {[%emt 0:
04:55]} 23. Kg2 {[%emt 0:00:59]} Qc6 {[%emt 0:02:33]} 24. e4 {[%emt 0:02:38]}
Rd2 {[%emt 0:01:50]} 25. Rxd2 {[%emt 0:08:01]} Rxd2 {[%emt 0:00:03]} 26. Rh4 {
[%emt 0:00:11]} g5 {[%emt 0:01:28]} 27. Rh5 {[%emt 0:00:15]} Bc5 {[%emt 0:00:
34]} 28. Qe1 {[%emt 0:04:25]} Rxf2+ {[%emt 0:00:19]} 29. Qxf2 {[%emt 0:00:28]}
Bxf2 {[%emt 0:00:11]} 30. Kxf2 {[%emt 0:00:05]} Qc5+ {[%emt 0:01:22]} 31. Kg2 {
[%emt 0:00:34]} Qe3 {[%emt 0:00:14]} 0-1

[Event "IRI-ch Men Final 2015"]
[Site "Tehran"]
[Date "2016.01.21"]
[Round "3"]
[White "Noroozi, Omid"]
[Black "Darini, Pouria"]
[Result "0-1"]
[ECO "D85"]
[WhiteElo "2399"]
[BlackElo "2474"]
[PlyCount "73"]
[EventDate "2016.??.??"]
[EventCountry "IRI"]
[TimeControl "40/5400+30:1800+30"]

1. d4 Nf6 2. c4 g6 3. Nc3 d5 4. cxd5 Nxd5 5. e4 Nxc3 6. bxc3 Bg7 7. Nf3 c5 8.
Bb5+ Nc6 9. d5 a6 10. Be2 {[%emt 0:06:46]} Ne5 {[%emt 0:20:59]} 11. Nxe5 {
[%emt 0:27:52]} Bxe5 {[%emt 0:00:13]} 12. O-O {[%emt 0:00:45]} e6 {[%emt 0:09:
44]} 13. Be3 {[%emt 0:08:27]} b6 {[%emt 0:38:04]} 14. Qa4+ {[%emt 0:11:26]} Bd7
{[%emt 0:02:57]} 15. Qb3 {[%emt 0:00:16]} exd5 {[%emt 0:17:27]} 16. Qxd5 {
[%emt 0:03:44]} Bxc3 {[%emt 0:00:08]} 17. Rad1 {[%emt 0:00:32]} Ba4 {[%emt 0:
00:39]} 18. Qxd8+ {[%emt 0:19:37]} Rxd8 {[%emt 0:00:08]} 19. Rxd8+ {[%emt 0:00:
05]} Kxd8 {[%emt 0:00:06]} 20. Bxa6 {[%emt 0:00:13]} Kc7 {[%emt 0:01:17]} 21.
Bf4+ {[%emt 0:05:36]} Kc6 {[%emt 0:00:13]} 22. Bc4 {[%emt 0:00:02]} f6 {
[%emt 0:00:07]} 23. Bd5+ {[%emt 0:02:52]} Kb5 {[%emt 0:03:54]} 24. Rc1 {
[%emt 0:05:07]} Bd4 {[%emt 0:00:08]} 25. Kf1 {[%emt 0:03:01]} Ka6 {[%emt 0:02:
02]} 26. Ke2 {[%emt 0:00:06]} Bb5+ {[%emt 0:02:01]} 27. Kf3 {[%emt 0:03:51]}
Rd8 {[%emt 0:00:08]} 28. Be3 {[%emt 0:00:41]} Be5 {[%emt 0:01:55]} 29. Bf4 {
[%emt 0:00:07]} Bd4 {[%emt 0:01:01]} 30. Be3 {[%emt 0:00:10]} f5 {[%emt 0:01:
17]} 31. Bxd4 {[%emt 0:02:15]} cxd4 {[%emt 0:00:01]} 32. Rd1 {[%emt 0:00:54]}
fxe4+ {[%emt 0:00:13]} 33. Kxe4 {[%emt 0:01:29]} d3 {[%emt 0:00:07]} 34. a4 {
[%emt 0:00:24]} Bxa4 {[%emt 0:00:37]} 35. Ra1 {[%emt 0:00:39]} Kb5 {[%emt 0:00:
45]} 36. Rb1+ {[%emt 0:00:31]} Ka5 {[%emt 0:00:24]} 37. Ra1 0-1

[Event "IRI-ch Men Final 2015"]
[Site "Tehran"]
[Date "2016.01.22"]
[Round "4"]
[White "Mosadeghpour, Masoud"]
[Black "Darini, Pouria"]
[Result "1/2-1/2"]
[ECO "B22"]
[WhiteElo "2475"]
[BlackElo "2474"]
[PlyCount "81"]
[EventDate "2016.??.??"]
[EventCountry "IRI"]
[TimeControl "40/5400+30:1800+30"]

1. e4 c5 2. d4 cxd4 3. c3 Nf6 4. e5 Nd5 5. Nf3 e6 6. cxd4 d6 7. Nc3 Nxc3 8.
bxc3 Qc7 9. Bd2 Nd7 10. exd6 Bxd6 11. Bd3 b6 12. O-O Bb7 13. Re1 O-O 14. Rc1
Bf4 15. Ne5 Bxd2 16. Qxd2 Nxe5 17. Rxe5 Rac8 18. Rh5 g6 19. Rh3 f5 20. Re3 Qf4
21. Qe1 Qg5 22. Bf1 f4 23. Re5 Rf5 24. Rxf5 Qxf5 25. f3 Bd5 26. Qd2 Qf7 27. Ba6
Rd8 28. Re1 Rd6 29. Re5 Qc7 30. Bb5 a6 31. Bxa6 Rc6 32. Qxf4 Rxc3 33. h4 Ra3
34. Bb5 Rxa2 35. h5 Qc2 36. Rg5 Qf2+ 37. Kh2 Qxf3 38. Qxf3 Bxf3 39. Bc4 Rd2 40.
hxg6 hxg6 41. Rxg6+ 1/2-1/2

[Event "IRI-ch Men Final 2015"]
[Site "Tehran"]
[Date "2016.01.22"]
[Round "4"]
[White "Ghaem Maghami, Ehsan"]
[Black "Noroozi, Omid"]
[Result "1-0"]
[ECO "A22"]
[WhiteElo "2594"]
[BlackElo "2399"]
[PlyCount "55"]
[EventDate "2016.??.??"]
[EventCountry "IRI"]
[TimeControl "40/5400+30:1800+30"]

1. c4 e5 2. Nc3 Nf6 3. g3 Bb4 4. Bg2 O-O 5. Nf3 Re8 6. O-O c6 7. d3 h6 8. e4
Bxc3 9. bxc3 d5 10. exd5 cxd5 11. d4 exd4 12. Nxd4 a6 13. cxd5 Nxd5 14. Qb3 Nf6
15. Bf4 Nbd7 16. Rad1 Qa5 17. Qb4 Qxb4 18. cxb4 Ne4 19. Rc1 Ndf6 20. Rfe1 g5
21. Be3 Nd6 22. Nb3 Be6 23. Bd4 Nd5 24. Nc5 Rab8 25. Nxe6 fxe6 26. Rxe6 Rxe6
27. Bxd5 Kf7 28. Rc7+ 1-0

[Event "IRI-ch Men Final 2015"]
[Site "Tehran"]
[Date "2016.01.22"]
[Round "4"]
[White "Maghsoodloo, Parham"]
[Black "Gholami, Aryan"]
[Result "0-1"]
[ECO "A01"]
[WhiteElo "2450"]
[BlackElo "2398"]
[PlyCount "64"]
[EventDate "2016.??.??"]
[EventCountry "IRI"]
[TimeControl "40/5400+30:1800+30"]

1. b3 e5 2. Bb2 Nc6 3. e3 Nf6 4. Nc3 d5 5. d4 exd4 6. exd4 Bd6 7. Qd2 O-O 8.
O-O-O Bf5 9. Bd3 Nxd4 10. Bxf5 Nxf5 11. Nxd5 Ne4 12. Qe2 Re8 13. Nh3 Qh4 14.
Qf3 Qh6+ 15. Kb1 Nh4 16. Qd3 c6 17. f3 cxd5 18. fxe4 Bf8 19. Qxd5 Nxg2 20. Ng5
Qh5 21. Rdg1 Rad8 22. Qxb7 Qxg5 23. e5 Rd2 24. Bc1 Red8 25. Bxd2 Rxd2 26. Qc6
Qg4 27. a4 g6 28. h3 Qd4 29. Qe8 Qe4 30. Rc1 Ne3 31. e6 fxe6 32. Qc8 Nxc2 0-1

[Event "IRI-ch Men Final 2015"]
[Site "Tehran"]
[Date "2016.01.22"]
[Round "4"]
[White "Bagheri, Maziar"]
[Black "Lorparizangeneh, Shahin"]
[Result "1/2-1/2"]
[ECO "B19"]
[WhiteElo "2262"]
[BlackElo "2442"]
[PlyCount "45"]
[EventDate "2016.??.??"]
[EventCountry "IRI"]
[TimeControl "40/5400+30:1800+30"]

1. e4 c6 2. d4 d5 3. Nc3 dxe4 4. Nxe4 Bf5 5. Ng3 Bg6 6. h4 h6 7. Nf3 Nd7 8. h5
Bh7 9. Bd3 Bxd3 10. Qxd3 e6 11. Bf4 Qa5+ 12. Bd2 Bb4 13. c3 Be7 14. c4 Qc7 15.
O-O-O Ngf6 16. Kb1 Rd8 17. Qe2 O-O 18. Ne5 c5 19. Ng6 Rfe8 20. Nxe7+ Rxe7 21.
d5 Ne5 22. Bf4 exd5 23. Rhe1 1/2-1/2

[Event "IRI-ch Men Final 2015"]
[Site "Tehran"]
[Date "2016.01.22"]
[Round "4"]
[White "Firouzja, Alireza"]
[Black "Khamisi, S Jafar"]
[Result "1-0"]
[ECO "A07"]
[WhiteElo "2455"]
[BlackElo "2279"]
[PlyCount "71"]
[EventDate "2016.??.??"]
[EventCountry "IRI"]
[TimeControl "40/5400+30:1800+30"]

1. Nf3 d5 2. g3 Nf6 3. Bg2 c6 4. O-O Bf5 5. d3 h6 6. Nbd2 e6 7. b3 Be7 8. Bb2
Nbd7 9. Re1 O-O 10. e4 dxe4 11. dxe4 Bh7 12. Qe2 Qc7 13. a3 a5 14. Rad1 Rfd8
15. e5 Nd5 16. Ne4 Bf8 17. Rd2 b5 18. c4 bxc4 19. bxc4 N5b6 20. Nd6 Na4 21. Ba1
Rab8 22. Red1 Rb6 23. Nd4 Nac5 24. Bc3 Ra6 25. f4 Be7 26. Qf3 Nb8 27. f5 exf5
28. N4xf5 Bxf5 29. Qxf5 Bg5 30. Re2 Rf8 31. Rf1 Ra7 32. Bd4 Ne6 33. Bxa7 Qxa7+
34. Kh1 Nd4 35. Qf2 c5 36. Rb2 1-0

[Event "IRI-ch Men Final 2015"]
[Site "Tehran"]
[Date "2016.01.22"]
[Round "4"]
[White "Mousavi, Seyed Khalil"]
[Black "Javanbakht, Nima"]
[Result "0-1"]
[ECO "D30"]
[WhiteElo "2425"]
[BlackElo "2422"]
[PlyCount "124"]
[EventDate "2016.??.??"]
[EventCountry "IRI"]
[TimeControl "40/5400+30:1800+30"]

1. c4 e6 2. Nf3 d5 3. d4 Nf6 4. e3 Be7 5. Bd3 O-O 6. O-O dxc4 7. Bxc4 a6 8. Qe2
b5 9. Bd3 Bb7 10. Rd1 Nbd7 11. b3 c5 12. dxc5 Qc7 13. b4 a5 14. Nc3 Bxf3 15.
gxf3 axb4 16. Nxb5 Qxc5 17. Bb2 Qb6 18. Nd4 Nc5 19. Bb5 Rfc8 20. Rdc1 Nd5 21.
a3 e5 22. axb4 Rxa1 23. Bxa1 Nxb4 24. Nf5 Qg6+ 25. Ng3 h5 26. Qb2 Bf8 27. Qb1
Qg5 28. h4 Qf6 29. f4 Qb6 30. Qf5 exf4 31. Nxh5 Rc7 32. Be5 Ra7 33. Bc4 fxe3
34. Kh2 exf2 35. Qg4 Qh6 36. Rf1 Nbd3 37. Bg3 Bd6 38. Qc8+ Kh7 39. Qf5+ Qg6 40.
Qxg6+ fxg6 41. Bxd6 gxh5 42. Bxc5 Nxc5 43. Rxf2 Ra4 44. Rf4 Kh6 45. Kg3 Ra3+
46. Kg2 Nd7 47. Be6 Nf6 48. Rd4 Kg6 49. Rf4 Ra5 50. Rd4 Re5 51. Bh3 Nd5 52. Kf3
Kf6 53. Re4 Rxe4 54. Kxe4 Ne7 55. Bd7 g6 56. Kf4 Nf5 57. Ba4 Nxh4 58. Bd1 Nf5
59. Ba4 g5+ 60. Ke4 Ng7 61. Bd1 Kg6 62. Ke5 g4 0-1

[Event "IRI-ch Men Final 2015"]
[Site "Tehran"]
[Date "2016.01.23"]
[Round "5"]
[White "Gholami, Aryan"]
[Black "Bagheri, Maziar"]
[Result "1-0"]
[ECO "D37"]
[WhiteElo "2398"]
[BlackElo "2262"]
[PlyCount "95"]
[EventDate "2016.??.??"]
[EventCountry "IRI"]
[TimeControl "40/5400+30:1800+30"]

1. d4 Nf6 2. Nf3 d5 3. c4 e6 4. Nc3 Be7 5. Bf4 O-O 6. e3 c5 7. dxc5 Bxc5 8.
cxd5 Nxd5 9. Nxd5 exd5 10. a3 Re8 11. b4 Bb6 12. Be2 Nc6 13. O-O a6 14. Qc2 Qf6
15. Bg5 Bf5 16. Bd3 Bxd3 17. Qxd3 Qe6 18. Rfd1 f6 19. Bf4 Rad8 20. b5 Ne5 21.
Bxe5 fxe5 22. Ng5 Qh6 23. Qf5 Re7 24. Rac1 Qh5 25. Rd2 d4 26. exd4 exd4 27.
bxa6 bxa6 28. Rd3 g6 29. Qf6 Qe2 30. Rdd1 Rde8 31. h4 Bc7 32. Nf3 d3 33. Qc3
Bb6 34. Rd2 Bxf2+ 35. Kh1 Qe3 36. Qc4+ Kg7 37. Qc3+ Kg8 38. Qb3+ Kg7 39. Qb2+
Kg8 40. Rxf2 Qf4 41. Qb3+ Kg7 42. Qc3+ Kh6 43. Qd2 Re3 44. Rcf1 R8e4 45. Nh2
Qe5 46. Rf3 Kg7 47. Rxe3 Rxe3 48. Ng4 1-0

[Event "IRI-ch Men Final 2015"]
[Site "Tehran"]
[Date "2016.01.23"]
[Round "5"]
[White "Javanbakht, Nima"]
[Black "Mosadeghpour, Masoud"]
[Result "1-0"]
[ECO "D85"]
[WhiteElo "2422"]
[BlackElo "2475"]
[PlyCount "66"]
[EventDate "2016.??.??"]
[EventCountry "IRI"]
[TimeControl "40/5400+30:1800+30"]

1. Nf3 Nf6 2. c4 g6 3. Nc3 d5 4. cxd5 Nxd5 5. Qb3 Nb6 6. d4 Be6 7. Qc2 Bg7 8.
e4 O-O 9. Be3 c6 10. Rd1 N8d7 11. Be2 Rc8 12. b3 h6 13. O-O f5 14. exf5 Bxf5
15. Qd2 Kh7 16. Rfe1 e6 17. g4 Bxg4 18. Ng5+ hxg5 19. Bxg4 e5 20. Ne4 Nd5 21.
Bxg5 Qc7 22. Qd3 Rf7 23. Qh3+ Kg8 24. Nc5 Nxc5 25. Bxc8 exd4 26. Re8+ Rf8 27.
Rxf8+ Kxf8 28. Re1 Qf7 29. b4 Na6 30. Be6 Nf4 31. Bxf4 Qxf4 32. Qh7 Qf6 33. Bc4
Nb8 1-0

[Event "IRI-ch Men Final 2015"]
[Site "Tehran"]
[Date "2016.01.23"]
[Round "5"]
[White "Noroozi, Omid"]
[Black "Maghsoodloo, Parham"]
[Result "1/2-1/2"]
[ECO "C67"]
[WhiteElo "2399"]
[BlackElo "2450"]
[PlyCount "107"]
[EventDate "2016.??.??"]
[EventCountry "IRI"]
[TimeControl "40/5400+30:1800+30"]

1. e4 e5 2. Nf3 Nc6 3. Bb5 Nf6 4. O-O Nxe4 5. d4 Nd6 6. Bxc6 dxc6 7. dxe5 Nf5
8. Qxd8+ Kxd8 9. h3 Ke8 10. Nc3 Be7 11. Bf4 h5 12. Rfe1 Be6 13. Ne2 Rd8 14. Bg5
h4 15. Nf4 Nd4 16. Nxd4 Rxd4 17. Nxe6 fxe6 18. Be3 Rd5 19. c4 Rxe5 20. Bf4 Rf5
21. Bxc7 Bc5 22. Re2 Rhf8 23. Rf1 Ke7 24. Be5 g5 25. b4 Bxb4 26. Rb1 Bc5 27.
Rxb7+ Ke8 28. Bd6 R8f7 29. Rb8+ Kd7 30. Bxc5 Rxc5 31. Rb7+ Ke8 32. Rxe6+ Kf8
33. Rb8+ Kg7 34. Rc8 Rf6 35. Re7+ Rf7 36. Re4 Rf4 37. Rc7+ Kf6 38. Rxf4+ gxf4
39. Rxa7 Rxc4 40. Kf1 Kf5 41. Ke2 Rc2+ 42. Kf3 Rc3+ 43. Ke2 Rc2+ 44. Ke1 c5 45.
a4 Ke4 46. a5 c4 47. a6 Ra2 48. Re7+ Kd3 49. Rd7+ Kc3 50. a7 Kb3 51. Rb7+ Kc3
52. Kd1 Kd3 53. Rd7+ Kc3 54. Rb7 1/2-1/2